[Event "Late-Titled-Tuesday-Blitz-April-23-2024"]
[Site "Chess.com"]
[Date "2024.04.23"]
[Round "11"]
[White "ansko1999"]
[Black "zverr1"]
[Result "1-0"]
[WhiteElo "2601"]
[BlackElo "2461"]
[TimeControl "180+1"]
[EndTime "16:08:12 PDT"]
[Termination "ansko1999 won by resignation"]

1. c4 {[%clk 0:03:00.9]} 1... e5 {[%clk 0:02:59.3]} 2. Nc3 {[%clk 0:02:57.5]}
2... Nc6 {[%clk 0:02:59.9]} 3. Nf3 {[%clk 0:02:57.3]} 3... f5 {[%clk 0:02:58.1]}
4. d4 {[%clk 0:02:57.5]} 4... e4 {[%clk 0:02:53.4]} 5. d5 {[%clk 0:02:57.7]}
5... exf3 {[%clk 0:02:49.9]} 6. dxc6 {[%clk 0:02:57]} 6... bxc6 {[%clk
0:02:48.2]} 7. exf3 {[%clk 0:02:46.9]} 7... Bb4 {[%clk 0:02:45]} 8. Bd3 {[%clk
0:02:44.9]} 8... d6 {[%clk 0:02:29.8]} 9. O-O {[%clk 0:02:42.6]} 9... Nf6 {[%clk
0:02:28]} 10. Re1+ {[%clk 0:02:31.9]} 10... Kf7 {[%clk 0:02:27.9]} 11. Qb3
{[%clk 0:02:25.8]} 11... a5 {[%clk 0:02:12.2]} 12. a3 {[%clk 0:02:24.3]} 12...
Bc5 {[%clk 0:02:09.3]} 13. Na4 {[%clk 0:02:23.3]} 13... Re8 {[%clk 0:01:53.5]}
14. Bg5 {[%clk 0:02:17.8]} 14... Bd4 {[%clk 0:01:44.2]} 15. Qc2 {[%clk
0:02:13.7]} 15... g6 {[%clk 0:01:31.1]} 16. Rad1 {[%clk 0:02:08.2]} 16... c5
{[%clk 0:01:27.5]} 17. Nc3 {[%clk 0:02:07.4]} 17... c6 {[%clk 0:01:11.4]} 18.
Ne2 {[%clk 0:02:05.6]} 18... Qb6 {[%clk 0:01:00.9]} 19. Nxd4 {[%clk 0:01:54.1]}
19... cxd4 {[%clk 0:01:01.8]} 20. Rxe8 {[%clk 0:01:33]} 20... Nxe8 {[%clk
0:00:53.7]} 21. Re1 {[%clk 0:01:33.3]} 21... Be6 {[%clk 0:00:50.5]} 22. Qe2
{[%clk 0:01:31.4]} 22... Nc7 {[%clk 0:00:47]} 23. Bf4 {[%clk 0:01:30.9]} 23...
Qc5 {[%clk 0:00:42.4]} 24. h4 {[%clk 0:01:26.4]} 24... Re8 {[%clk 0:00:41.1]}
25. Qd2 {[%clk 0:01:26.4]} 25... Bd7 {[%clk 0:00:30.5]} 26. b4 {[%clk
0:01:11.4]} 26... axb4 {[%clk 0:00:27.9]} 27. axb4 {[%clk 0:01:11.5]} 27...
Rxe1+ {[%clk 0:00:25]} 28. Qxe1 {[%clk 0:01:12.4]} 28... Qa7 {[%clk 0:00:22.9]}
29. Bxd6 {[%clk 0:01:09.6]} 29... Ne6 {[%clk 0:00:23]} 30. c5 {[%clk 0:01:06.8]}
30... Qa2 {[%clk 0:00:20.5]} 31. g3 {[%clk 0:00:56.1]} 31... h6 {[%clk
0:00:19.7]} 32. Qe2 {[%clk 0:00:54.3]} 32... Qa1+ {[%clk 0:00:15.5]} 33. Kg2
{[%clk 0:00:53.1]} 33... Qa3 {[%clk 0:00:15.2]} 34. Qd2 {[%clk 0:00:47.7]} 34...
Qc3 {[%clk 0:00:12.8]} 35. Qxc3 {[%clk 0:00:46.2]} 35... dxc3 {[%clk 0:00:12.9]}
36. Be5 {[%clk 0:00:47]} 36... Bc8 {[%clk 0:00:06.7]} 37. Bxc3 {[%clk
0:00:47.2]} 37... Nc7 {[%clk 0:00:07.4]} 38. Bc4+ {[%clk 0:00:47.3]} 38... Be6
{[%clk 0:00:06.2]} 39. Be2 {[%clk 0:00:37.6]} 39... Bd5 {[%clk 0:00:06.2]} 40.
Kf1 {[%clk 0:00:34.9]} 40... Nb5 {[%clk 0:00:06]} 41. Bb2 {[%clk 0:00:31.3]}
41... Ke6 {[%clk 0:00:04.8]} 42. Ke1 {[%clk 0:00:31]} 42... h5 {[%clk
0:00:05.1]} 43. Kd2 {[%clk 0:00:30.4]} 43... Bb3 {[%clk 0:00:02.3]} 44. f4
{[%clk 0:00:24.3]} 44... Kd5 {[%clk 0:00:02.3]} 45. Bc3 {[%clk 0:00:18.7]} 45...
Bc4 {[%clk 0:00:01.7]} 46. Bf3+ {[%clk 0:00:18.4]} 46... Ke6 {[%clk 0:00:02.4]}
47. Bxc6 {[%clk 0:00:17.9]} 47... Bd5 {[%clk 0:00:03]} 48. Bxb5 {[%clk
0:00:17.5]} 48... Be4 {[%clk 0:00:03]} 49. Bc4+ {[%clk 0:00:17.7]} 49... Bd5
{[%clk 0:00:02.1]} 50. Kd3 {[%clk 0:00:17.5]} 1-0

[Event "Late-Titled-Tuesday-Blitz-April-23-2024"]
[Site "Chess.com"]
[Date "2024.04.23"]
[Round "11"]
[White "kleber2007"]
[Black "Fh2411"]
[Result "1-0"]
[WhiteElo "2465"]
[BlackElo "2530"]
[TimeControl "180+1"]
[EndTime "16:08:15 PDT"]
[Termination "kleber2007 won on time"]

1. Nf3 {[%clk 0:03:00.9]} 1... d5 {[%clk 0:02:59.6]} 2. g3 {[%clk 0:03:01]} 2...
c6 {[%clk 0:03:00.5]} 3. Bg2 {[%clk 0:03:01.2]} 3... Bf5 {[%clk 0:03:01.4]} 4.
c4 {[%clk 0:03:00.6]} 4... e6 {[%clk 0:03:01.8]} 5. O-O {[%clk 0:03:00]} 5...
Nf6 {[%clk 0:03:02.5]} 6. cxd5 {[%clk 0:02:59.8]} 6... exd5 {[%clk 0:03:02.6]}
7. d3 {[%clk 0:02:59.3]} 7... Be7 {[%clk 0:03:03.2]} 8. Qb3 {[%clk 0:02:58.8]}
8... Qb6 {[%clk 0:03:02.8]} 9. Qc2 {[%clk 0:02:59]} 9... O-O {[%clk 0:03:02.1]}
10. Nc3 {[%clk 0:02:59.4]} 10... Bb4 {[%clk 0:02:55.4]} 11. e4 {[%clk 0:02:54]}
11... Bxc3 {[%clk 0:02:47.2]} 12. exf5 {[%clk 0:02:49.1]} 12... Bb4 {[%clk
0:02:45.1]} 13. a3 {[%clk 0:02:39.9]} 13... Bd6 {[%clk 0:02:44.8]} 14. b4 {[%clk
0:02:40.1]} 14... Nbd7 {[%clk 0:02:43.4]} 15. Bb2 {[%clk 0:02:39.4]} 15... Rfe8
{[%clk 0:02:43.5]} 16. Rfe1 {[%clk 0:02:33.5]} 16... h6 {[%clk 0:02:42.4]} 17.
h3 {[%clk 0:02:20.9]} 17... a5 {[%clk 0:02:41.2]} 18. bxa5 {[%clk 0:02:16.9]}
18... Qxa5 {[%clk 0:02:38.1]} 19. Bc3 {[%clk 0:02:16.6]} 19... Rxe1+ {[%clk
0:02:29.6]} 20. Bxe1 {[%clk 0:02:04.5]} 20... Qa4 {[%clk 0:02:29.4]} 21. Qb2
{[%clk 0:01:59.9]} 21... Ra7 {[%clk 0:02:15.9]} 22. Bc3 {[%clk 0:01:58.7]} 22...
Bxa3 {[%clk 0:01:52.2]} 23. Qd2 {[%clk 0:01:44.8]} 23... b5 {[%clk 0:01:51.3]}
24. g4 {[%clk 0:01:42.3]} 24... c5 {[%clk 0:01:45.7]} 25. Ne5 {[%clk 0:01:15.8]}
25... d4 {[%clk 0:01:01]} 26. Nxd7 {[%clk 0:01:12.4]} 26... Nxd7 {[%clk
0:00:49.8]} 27. Bb2 {[%clk 0:01:09.7]} 27... b4 {[%clk 0:00:48]} 28. Bd5 {[%clk
0:01:00]} 28... Nf6 {[%clk 0:00:44.8]} 29. Bc4 {[%clk 0:00:57.3]} 29... Qd7
{[%clk 0:00:38.9]} 30. Bxa3 {[%clk 0:00:50.3]} 30... bxa3 {[%clk 0:00:39.2]} 31.
Qc1 {[%clk 0:00:45.2]} 31... Qe7 {[%clk 0:00:21]} 32. Rxa3 {[%clk 0:00:41.2]}
32... Rxa3 {[%clk 0:00:21.2]} 33. Qxa3 {[%clk 0:00:41.9]} 33... Ne8 {[%clk
0:00:11.4]} 34. Qa8 {[%clk 0:00:37.7]} 34... Kh7 {[%clk 0:00:11.6]} 35. Qd5
{[%clk 0:00:32.6]} 35... Kg8 {[%clk 0:00:09]} 36. Kg2 {[%clk 0:00:28]} 36... Nf6
{[%clk 0:00:09.1]} 37. Qa8+ {[%clk 0:00:19.5]} 37... Kh7 {[%clk 0:00:09.4]} 38.
Qf3 {[%clk 0:00:19.9]} 38... Nd7 {[%clk 0:00:08.1]} 39. Qd5 {[%clk 0:00:18.2]}
39... Ne5 {[%clk 0:00:08.6]} 40. Qe4 {[%clk 0:00:12.5]} 40... Qc7 {[%clk
0:00:03.7]} 41. f6+ {[%clk 0:00:11.9]} 41... g6 {[%clk 0:00:03.3]} 42. Bd5
{[%clk 0:00:09.9]} 42... Qd6 {[%clk 0:00:02.7]} 43. h4 {[%clk 0:00:09.7]} 43...
Nd7 {[%clk 0:00:01.1]} 44. h5 {[%clk 0:00:07.4]} 1-0

[Event "Late-Titled-Tuesday-Blitz-April-23-2024"]
[Site "Chess.com"]
[Date "2024.04.23"]
[Round "11"]
[White "Rodalquilar"]
[Black "DanielNaroditsky"]
[Result "0-1"]
[WhiteElo "2744"]
[BlackElo "2966"]
[TimeControl "180+1"]
[EndTime "16:08:17 PDT"]
[Termination "DanielNaroditsky won on time"]

1. d4 {[%clk 0:03:00.9]} 1... Nf6 {[%clk 0:03:00.3]} 2. Nf3 {[%clk 0:03:01.3]}
2... g6 {[%clk 0:03:00.8]} 3. Bf4 {[%clk 0:03:01.5]} 3... Bg7 {[%clk 0:03:00.4]}
4. e3 {[%clk 0:03:02.2]} 4... O-O {[%clk 0:03:01]} 5. Be2 {[%clk 0:03:02.8]}
5... c5 {[%clk 0:03:01.7]} 6. c3 {[%clk 0:03:02.6]} 6... d6 {[%clk 0:03:02.4]}
7. O-O {[%clk 0:03:03.1]} 7... cxd4 {[%clk 0:03:03.2]} 8. exd4 {[%clk
0:03:03.4]} 8... Nc6 {[%clk 0:03:03.6]} 9. Nbd2 {[%clk 0:03:03.4]} 9... Nh5
{[%clk 0:03:00.6]} 10. Be3 {[%clk 0:02:46.6]} 10... e5 {[%clk 0:03:01]} 11. dxe5
{[%clk 0:02:46.7]} 11... dxe5 {[%clk 0:03:01.9]} 12. Nc4 {[%clk 0:02:44.1]}
12... Qe7 {[%clk 0:02:56.6]} 13. Qd6 {[%clk 0:02:40.7]} 13... Qxd6 {[%clk
0:02:49.7]} 14. Nxd6 {[%clk 0:02:41]} 14... Rd8 {[%clk 0:02:50.6]} 15. Rfd1
{[%clk 0:02:37.8]} 15... Bf8 {[%clk 0:01:44.3]} 16. Nxc8 {[%clk 0:02:05.8]}
16... Raxc8 {[%clk 0:01:44]} 17. Bg5 {[%clk 0:01:57.6]} 17... Rxd1+ {[%clk
0:01:41.9]} 18. Rxd1 {[%clk 0:01:58.5]} 18... h6 {[%clk 0:01:36.1]} 19. Be3
{[%clk 0:01:52.8]} 19... Nf6 {[%clk 0:01:36]} 20. Bb5 {[%clk 0:01:47.1]} 20...
Ng4 {[%clk 0:01:34.7]} 21. Bxc6 {[%clk 0:01:35.4]} 21... Rxc6 {[%clk 0:01:35.6]}
22. Bxa7 {[%clk 0:01:00.8]} 22... Ra6 {[%clk 0:01:34.3]} 23. Bb8 {[%clk
0:01:01.2]} 23... Bc5 {[%clk 0:01:06]} 24. Rd8+ {[%clk 0:00:28.5]} 24... Kg7
{[%clk 0:01:02]} 25. h3 {[%clk 0:00:26]} 25... Bxf2+ {[%clk 0:00:54.7]} 26. Kf1
{[%clk 0:00:21.5]} 26... Bb6 {[%clk 0:00:55.6]} 27. Re8 {[%clk 0:00:11.8]} 27...
Ne3+ {[%clk 0:00:55]} 28. Ke2 {[%clk 0:00:12.3]} 28... Nxg2 {[%clk 0:00:47.3]}
29. Bxe5+ {[%clk 0:00:11.9]} 29... f6 {[%clk 0:00:48]} 30. Re7+ {[%clk
0:00:12.3]} 30... Kf8 {[%clk 0:00:47.3]} 31. Bxf6 {[%clk 0:00:12.3]} 31... Nf4+
{[%clk 0:00:47.5]} 32. Kd2 {[%clk 0:00:10.4]} 32... Nd5 {[%clk 0:00:48]} 33.
Rxb7 {[%clk 0:00:05.1]} 33... Nxf6 {[%clk 0:00:47]} 34. Ne5 {[%clk 0:00:05.7]}
34... Ne4+ {[%clk 0:00:45.4]} 35. Kc2 {[%clk 0:00:05]} 35... Bd8 {[%clk
0:00:35.9]} 36. Rb4 {[%clk 0:00:02.2]} 36... Ng5 {[%clk 0:00:33.2]} 37. h4
{[%clk 0:00:02.2]} 37... Nf7 {[%clk 0:00:30.3]} 38. Nxf7 {[%clk 0:00:01.5]}
38... Kxf7 {[%clk 0:00:30.8]} 39. a4 {[%clk 0:00:02.4]} 39... h5 {[%clk
0:00:23.5]} 40. Rf4+ {[%clk 0:00:02.3]} 40... Rf6 {[%clk 0:00:23.8]} 41. Rb4
{[%clk 0:00:01.9]} 41... Rf2+ {[%clk 0:00:24]} 42. Kb3 {[%clk 0:00:02.5]} 42...
Rh2 {[%clk 0:00:24.6]} 43. Rb7+ {[%clk 0:00:02.6]} 43... Ke8 {[%clk 0:00:24.3]}
44. Rb8 {[%clk 0:00:02.4]} 44... Kd7 {[%clk 0:00:25]} 45. Rb7+ {[%clk
0:00:02.4]} 45... Kc6 {[%clk 0:00:23.5]} 46. Rg7 {[%clk 0:00:03.3]} 46... Rg2
{[%clk 0:00:23.6]} 47. a5 {[%clk 0:00:03.6]} 47... Bxa5 {[%clk 0:00:23.9]} 48.
Kc4 {[%clk 0:00:03]} 48... Rg4+ {[%clk 0:00:23.7]} 49. Kd3 {[%clk 0:00:02.9]}
49... Bd8 {[%clk 0:00:24.5]} 50. b4 {[%clk 0:00:03.4]} 50... Bxh4 {[%clk
0:00:24.2]} 51. c4 {[%clk 0:00:03.8]} 51... Bf6 {[%clk 0:00:23]} 52. Rf7 {[%clk
0:00:04.1]} 52... Bd4 {[%clk 0:00:20]} 53. b5+ {[%clk 0:00:03]} 53... Kd6 {[%clk
0:00:19.2]} 54. Rh7 {[%clk 0:00:01.4]} 54... Bc5 {[%clk 0:00:18.8]} 55. Rh8
{[%clk 0:00:01.4]} 55... h4 {[%clk 0:00:16.3]} 0-1

[Event "Late-Titled-Tuesday-Blitz-April-23-2024"]
[Site "Chess.com"]
[Date "2024.04.23"]
[Round "11"]
[White "temiksmozg"]
[Black "dretch"]
[Result "1/2-1/2"]
[WhiteElo "2719"]
[BlackElo "2910"]
[TimeControl "180+1"]
[EndTime "16:08:20 PDT"]
[Termination "Game drawn by repetition"]

1. e4 {[%clk 0:03:00.9]} 1... e6 {[%clk 0:03:00]} 2. d3 {[%clk 0:03:00.5]} 2...
d5 {[%clk 0:02:59.8]} 3. Nd2 {[%clk 0:03:01.4]} 3... Bd6 {[%clk 0:02:57.8]} 4.
Ngf3 {[%clk 0:03:01.5]} 4... c5 {[%clk 0:02:58]} 5. g3 {[%clk 0:02:57.6]} 5...
Ne7 {[%clk 0:02:58]} 6. Bg2 {[%clk 0:02:58.1]} 6... O-O {[%clk 0:02:58]} 7. O-O
{[%clk 0:02:58.7]} 7... Nbc6 {[%clk 0:02:56.9]} 8. Re1 {[%clk 0:02:58.8]} 8...
Qc7 {[%clk 0:02:56.9]} 9. Qe2 {[%clk 0:02:50.4]} 9... f6 {[%clk 0:02:57]} 10. h4
{[%clk 0:02:45.9]} 10... Bd7 {[%clk 0:02:55.2]} 11. Nf1 {[%clk 0:02:45.6]} 11...
d4 {[%clk 0:02:52.2]} 12. h5 {[%clk 0:02:44.9]} 12... e5 {[%clk 0:02:41.3]} 13.
Nh4 {[%clk 0:02:44.6]} 13... b5 {[%clk 0:02:39.3]} 14. g4 {[%clk 0:02:21.2]}
14... a5 {[%clk 0:02:20.8]} 15. Ng3 {[%clk 0:02:17.4]} 15... a4 {[%clk
0:02:19.6]} 16. g5 {[%clk 0:02:15.1]} 16... fxg5 {[%clk 0:02:18]} 17. Bxg5
{[%clk 0:02:14.2]} 17... a3 {[%clk 0:02:05.2]} 18. b3 {[%clk 0:02:10.2]} 18...
Rae8 {[%clk 0:01:43.8]} 19. Rf1 {[%clk 0:02:03.1]} 19... Qc8 {[%clk 0:01:35.4]}
20. Kh2 {[%clk 0:01:47.1]} 20... Rf4 {[%clk 0:01:12.3]} 21. Ngf5 {[%clk
0:01:26.8]} 21... Nxf5 {[%clk 0:01:04.7]} 22. exf5 {[%clk 0:01:27]} 22... Bxf5
{[%clk 0:01:03.7]} 23. Bxf4 {[%clk 0:01:25.7]} 23... exf4 {[%clk 0:00:59.6]} 24.
Qf3 {[%clk 0:01:00.9]} 24... Be6 {[%clk 0:00:43.5]} 25. Kg1 {[%clk 0:00:45.8]}
25... Nb4 {[%clk 0:00:42.6]} 26. Qd1 {[%clk 0:00:27.5]} 26... Be7 {[%clk
0:00:29.9]} 27. Nf3 {[%clk 0:00:24.9]} 27... Bg4 {[%clk 0:00:29.6]} 28. Re1
{[%clk 0:00:23.8]} 28... Qf5 {[%clk 0:00:11]} 29. Qd2 {[%clk 0:00:21.4]} 29...
Qxh5 {[%clk 0:00:08.6]} 30. Re5 {[%clk 0:00:21.2]} 30... Qf7 {[%clk 0:00:07.5]}
31. Nh2 {[%clk 0:00:09.7]} 31... Bd7 {[%clk 0:00:07.6]} 32. Rae1 {[%clk
0:00:09.5]} 32... Bd6 {[%clk 0:00:07.8]} 33. Rxe8+ {[%clk 0:00:08.9]} 33... Bxe8
{[%clk 0:00:08.7]} 34. c3 {[%clk 0:00:05.4]} 34... dxc3 {[%clk 0:00:08.7]} 35.
Qxc3 {[%clk 0:00:06.3]} 35... Bd7 {[%clk 0:00:09.1]} 36. Qd2 {[%clk 0:00:04.6]}
36... h6 {[%clk 0:00:09.3]} 37. d4 {[%clk 0:00:04.9]} 37... c4 {[%clk
0:00:09.2]} 38. bxc4 {[%clk 0:00:04.8]} 38... bxc4 {[%clk 0:00:09.9]} 39. d5
{[%clk 0:00:05.4]} 39... Nd3 {[%clk 0:00:10.2]} 40. Rb1 {[%clk 0:00:04.4]} 40...
Bc5 {[%clk 0:00:10.3]} 41. Rf1 {[%clk 0:00:02.4]} 41... Bf5 {[%clk 0:00:10.1]}
42. Nf3 {[%clk 0:00:02.7]} 42... Qxd5 {[%clk 0:00:09.7]} 43. Ne1 {[%clk
0:00:03.1]} 43... Qd4 {[%clk 0:00:09.7]} 44. Nxd3 {[%clk 0:00:03.4]} 44... Bxd3
{[%clk 0:00:10.3]} 45. Re1 {[%clk 0:00:03.6]} 45... c3 {[%clk 0:00:10.4]} 46.
Qd1 {[%clk 0:00:02.2]} 46... c2 {[%clk 0:00:09.6]} 47. Qc1 {[%clk 0:00:02]}
47... Bb4 {[%clk 0:00:10]} 48. Re8+ {[%clk 0:00:01.5]} 48... Kf7 {[%clk
0:00:10.1]} 49. Rc8 {[%clk 0:00:01.9]} 49... Qb2 {[%clk 0:00:10.3]} 50. Qxf4+
{[%clk 0:00:01.2]} 50... Kg6 {[%clk 0:00:10.1]} 51. Qg4+ {[%clk 0:00:01.5]}
51... Kf6 {[%clk 0:00:09.3]} 52. Qf4+ {[%clk 0:00:01.8]} 52... Kg6 {[%clk
0:00:09.4]} 53. Qg4+ {[%clk 0:00:01.7]} 53... Kf6 {[%clk 0:00:09.4]} 54. Qf4+
{[%clk 0:00:02.4]} 54... Kg6 {[%clk 0:00:09.5]} 1/2-1/2

[Event "Late-Titled-Tuesday-Blitz-April-23-2024"]
[Site "Chess.com"]
[Date "2024.04.23"]
[Round "11"]
[White "masterofpuppets2"]
[Black "azikom"]
[Result "0-1"]
[WhiteElo "2478"]
[BlackElo "2700"]
[TimeControl "180+1"]
[EndTime "16:08:22 PDT"]
[Termination "azikom won on time"]

1. d4 {[%clk 0:03:00.9]} 1... c6 {[%clk 0:03:00.9]} 2. c4 {[%clk 0:03:01.4]}
2... d5 {[%clk 0:03:01.4]} 3. cxd5 {[%clk 0:03:02.3]} 3... cxd5 {[%clk
0:03:01.3]} 4. Bf4 {[%clk 0:03:02.9]} 4... Nc6 {[%clk 0:03:01.2]} 5. e3 {[%clk
0:03:03.6]} 5... Qb6 {[%clk 0:03:00.6]} 6. Nc3 {[%clk 0:03:02.4]} 6... e6 {[%clk
0:03:00]} 7. a3 {[%clk 0:02:54.3]} 7... Nf6 {[%clk 0:02:54.4]} 8. Bd3 {[%clk
0:02:53.4]} 8... Bd7 {[%clk 0:02:51.8]} 9. Nge2 {[%clk 0:02:49.1]} 9... Rc8
{[%clk 0:02:49.4]} 10. h3 {[%clk 0:02:47.1]} 10... Be7 {[%clk 0:02:48.7]} 11. b4
{[%clk 0:02:46]} 11... Qd8 {[%clk 0:02:27]} 12. O-O {[%clk 0:02:44.7]} 12... O-O
{[%clk 0:02:23.7]} 13. Na4 {[%clk 0:02:43.6]} 13... Ne4 {[%clk 0:02:06.1]} 14.
Nc5 {[%clk 0:02:39.4]} 14... Nxc5 {[%clk 0:02:04.5]} 15. bxc5 {[%clk 0:02:36.1]}
15... h6 {[%clk 0:01:59.5]} 16. Bc2 {[%clk 0:02:29]} 16... b6 {[%clk 0:01:55.4]}
17. Qd3 {[%clk 0:02:28.6]} 17... f5 {[%clk 0:01:54.2]} 18. cxb6 {[%clk
0:02:09.6]} 18... axb6 {[%clk 0:01:55.1]} 19. Rfc1 {[%clk 0:02:06.8]} 19... Na5
{[%clk 0:01:55]} 20. Be5 {[%clk 0:01:59]} 20... Nc4 {[%clk 0:01:54.1]} 21. Nf4
{[%clk 0:01:52.6]} 21... Nxe5 {[%clk 0:01:41]} 22. dxe5 {[%clk 0:01:52.3]} 22...
Bc5 {[%clk 0:01:40.9]} 23. Rd1 {[%clk 0:01:44.5]} 23... Qe8 {[%clk 0:01:29.1]}
24. Bb3 {[%clk 0:01:35.9]} 24... Kh8 {[%clk 0:01:21.4]} 25. h4 {[%clk
0:01:36.1]} 25... g5 {[%clk 0:01:12.8]} 26. hxg5 {[%clk 0:01:34.7]} 26... hxg5
{[%clk 0:01:13.7]} 27. Ne2 {[%clk 0:01:35.3]} 27... Kg7 {[%clk 0:01:10.9]} 28.
g3 {[%clk 0:01:18.9]} 28... Rh8 {[%clk 0:01:05.9]} 29. Kg2 {[%clk 0:01:18.7]}
29... Bb5 {[%clk 0:01:04.5]} 30. Qd2 {[%clk 0:01:18.4]} 30... Bc4 {[%clk
0:00:38.9]} 31. Bxc4 {[%clk 0:01:17.6]} 31... dxc4 {[%clk 0:00:38.9]} 32. Qc2
{[%clk 0:00:52.5]} 32... Qc6+ {[%clk 0:00:37.2]} 33. e4 {[%clk 0:00:40.3]} 33...
fxe4 {[%clk 0:00:34.2]} 34. Nc3 {[%clk 0:00:37.8]} 34... e3+ {[%clk 0:00:32.7]}
35. Qe4 {[%clk 0:00:35.1]} 35... exf2 {[%clk 0:00:29.1]} 36. Qxc6 {[%clk
0:00:33.8]} 36... Rxc6 {[%clk 0:00:28.7]} 37. Ne4 {[%clk 0:00:33.4]} 37... Kg6
{[%clk 0:00:25.1]} 38. Rac1 {[%clk 0:00:22.7]} 38... Bxa3 {[%clk 0:00:23.4]} 39.
Rc3 {[%clk 0:00:21.3]} 39... Bb2 {[%clk 0:00:22.8]} 40. Rf3 {[%clk 0:00:16.9]}
40... Bxe5 {[%clk 0:00:22.5]} 41. Rd7 {[%clk 0:00:17]} 41... c3 {[%clk
0:00:18.4]} 42. Rd1 {[%clk 0:00:08.9]} 42... c2 {[%clk 0:00:18.2]} 43. Rf1
{[%clk 0:00:08.8]} 43... Rc4 {[%clk 0:00:15.8]} 44. Nxf2 {[%clk 0:00:01.3]}
44... c1=Q {[%clk 0:00:15.3]} 45. Rxc1 {[%clk 0:00:01.5]} 45... Rxc1 {[%clk
0:00:16.2]} 46. Nd3 {[%clk 0:00:02]} 46... Rc2+ {[%clk 0:00:16.2]} 47. Kf1
{[%clk 0:00:02.6]} 47... Bd4 {[%clk 0:00:16.2]} 48. Ne1 {[%clk 0:00:01.9]} 48...
Ra2 {[%clk 0:00:15.7]} 49. g4 {[%clk 0:00:01.5]} 49... Bc5 {[%clk 0:00:15.3]}
50. Rg3 {[%clk 0:00:01.4]} 50... Rha8 {[%clk 0:00:13.9]} 51. Rd3 {[%clk
0:00:01]} 51... R8a3 {[%clk 0:00:13.3]} 0-1

[Event "Late-Titled-Tuesday-Blitz-April-23-2024"]
[Site "Chess.com"]
[Date "2024.04.23"]
[Round "11"]
[White "nihalsarin"]
[Black "MatthewG-p4p"]
[Result "1-0"]
[WhiteElo "3141"]
[BlackElo "2912"]
[TimeControl "180+1"]
[EndTime "16:08:24 PDT"]
[Termination "nihalsarin won on time"]

1. e4 {[%clk 0:02:55.2]} 1... e6 {[%clk 0:02:58]} 2. Qe2 {[%clk 0:02:50.7]} 2...
Be7 {[%clk 0:02:57]} 3. h4 {[%clk 0:02:47.3]} 3... d5 {[%clk 0:02:57]} 4. e5
{[%clk 0:02:46]} 4... c5 {[%clk 0:02:56.9]} 5. d3 {[%clk 0:02:40]} 5... Nc6
{[%clk 0:02:56.4]} 6. c3 {[%clk 0:02:40.8]} 6... Qc7 {[%clk 0:02:45.3]} 7. Nf3
{[%clk 0:02:35.8]} 7... f6 {[%clk 0:02:43.4]} 8. Bf4 {[%clk 0:02:34.2]} 8...
fxe5 {[%clk 0:02:16.8]} 9. Nxe5 {[%clk 0:02:35.1]} 9... Nxe5 {[%clk 0:02:17.3]}
10. Bxe5 {[%clk 0:02:35.4]} 10... Bd6 {[%clk 0:02:17.9]} 11. Qh5+ {[%clk
0:02:15.7]} 11... g6 {[%clk 0:02:14.2]} 12. Bxd6 {[%clk 0:02:15.9]} 12... Qxd6
{[%clk 0:02:15.1]} 13. Qg5 {[%clk 0:02:16.6]} 13... Qe7 {[%clk 0:02:07.3]} 14.
Nd2 {[%clk 0:02:13.2]} 14... Nf6 {[%clk 0:02:04.6]} 15. Nf3 {[%clk 0:02:12.7]}
15... Bd7 {[%clk 0:02:04.7]} 16. Ne5 {[%clk 0:02:05.4]} 16... O-O-O {[%clk
0:01:56.1]} 17. g3 {[%clk 0:01:57.2]} 17... Rhf8 {[%clk 0:01:49.8]} 18. Bh3
{[%clk 0:01:57.4]} 18... Rde8 {[%clk 0:01:48.9]} 19. O-O {[%clk 0:01:56.5]}
19... Kb8 {[%clk 0:01:39.9]} 20. Rfe1 {[%clk 0:01:54.8]} 20... Bc8 {[%clk
0:01:40.2]} 21. Re2 {[%clk 0:01:54.5]} 21... Ng8 {[%clk 0:01:33.1]} 22. Rae1
{[%clk 0:01:52.5]} 22... Qd6 {[%clk 0:01:31.2]} 23. d4 {[%clk 0:01:48.7]} 23...
cxd4 {[%clk 0:01:28.4]} 24. cxd4 {[%clk 0:01:49.6]} 24... Qb4 {[%clk 0:01:28.5]}
25. Qe3 {[%clk 0:01:45.1]} 25... Nf6 {[%clk 0:01:25.5]} 26. a3 {[%clk
0:01:45.8]} 26... Qb6 {[%clk 0:01:25.3]} 27. f3 {[%clk 0:01:42.2]} 27... Nd7
{[%clk 0:01:21.9]} 28. Nd3 {[%clk 0:01:38.6]} 28... Qd6 {[%clk 0:01:09.3]} 29.
Kg2 {[%clk 0:01:38.4]} 29... Qb6 {[%clk 0:01:02]} 30. b4 {[%clk 0:01:29.2]}
30... Qd6 {[%clk 0:00:56]} 31. Qh6 {[%clk 0:01:13]} 31... Nf6 {[%clk 0:00:49.8]}
32. Nc5 {[%clk 0:01:13.2]} 32... Nh5 {[%clk 0:00:48.4]} 33. Re5 {[%clk
0:01:12.9]} 33... b6 {[%clk 0:00:37.3]} 34. Nd3 {[%clk 0:01:11]} 34... Ba6
{[%clk 0:00:35]} 35. Nf2 {[%clk 0:01:11]} 35... Rf7 {[%clk 0:00:30]} 36. Bg4
{[%clk 0:01:01.8]} 36... Bc8 {[%clk 0:00:13.6]} 37. Bxh5 {[%clk 0:00:59.1]}
37... gxh5 {[%clk 0:00:14.5]} 38. Qxh5 {[%clk 0:00:59.5]} 38... Ref8 {[%clk
0:00:15.1]} 39. f4 {[%clk 0:00:59.5]} 39... Rg7 {[%clk 0:00:15.1]} 40. Rg5
{[%clk 0:00:55.2]} 40... Rc7 {[%clk 0:00:15.2]} 41. Rge5 {[%clk 0:00:50.9]}
41... Rg8 {[%clk 0:00:14.7]} 42. Kh2 {[%clk 0:00:50.8]} 42... Rc2 {[%clk
0:00:13.9]} 43. R1e2 {[%clk 0:00:49.6]} 43... Qc7 {[%clk 0:00:13]} 44. Rxc2
{[%clk 0:00:47.5]} 44... Qxc2 {[%clk 0:00:13.9]} 45. Re2 {[%clk 0:00:44.1]}
45... Qc3 {[%clk 0:00:13.9]} 46. Qe5+ {[%clk 0:00:44.9]} 46... Ka8 {[%clk
0:00:14]} 47. Qe3 {[%clk 0:00:45.7]} 47... Qa1 {[%clk 0:00:09.4]} 48. Rc2 {[%clk
0:00:40.8]} 48... Qb1 {[%clk 0:00:05.4]} 49. Qc1 {[%clk 0:00:26.6]} 49... Qxc1
{[%clk 0:00:03.4]} 50. Rxc1 {[%clk 0:00:27.5]} 50... Kb7 {[%clk 0:00:03.4]} 51.
g4 {[%clk 0:00:27.8]} 51... Bd7 {[%clk 0:00:03.3]} 52. g5 {[%clk 0:00:27.3]}
52... a5 {[%clk 0:00:02.6]} 53. bxa5 {[%clk 0:00:26.5]} 53... bxa5 {[%clk
0:00:03.5]} 54. Ng4 {[%clk 0:00:26.8]} 54... Rg7 {[%clk 0:00:02.2]} 55. h5
{[%clk 0:00:26.2]} 55... Bb5 {[%clk 0:00:02.5]} 56. Kg3 {[%clk 0:00:22.9]} 56...
Be2 {[%clk 0:00:02.3]} 57. Re1 {[%clk 0:00:22.3]} 1-0